[Event "Vastgota Open 2022"]
[Site "Skara stadshotell, Jarnvagsgatan 5, Skara, Sweden"]
[Date "2022.10.30"]
[Round "7.1"]
[White "Madebrink, Lars"]
[Black "Blomqvist, Erik"]
[Result "0-1"]
[TimeControl "30 minutes + 10 seconds per move from move one."]
[BlackTitle "GM"]
[WhiteFideId "1701347"]
[BlackFideId "1709437"]
[WhiteElo "2094"]
[BlackElo "2490"]

1. d4 {[%clk 00:30:17]} {[%emt 00:00:04]} Nf6 {[%clk 00:30:19]} 2. c4 {[%clk
00:30:26]} e6 {[%clk 00:30:27]} {[%emt 00:00:01]} 3. Nc3 {[%clk 00:30:35]}
{[%emt 00:00:02]} Bb4 {[%clk 00:30:36]} {[%emt 00:00:01]} 4. f3 {[%clk
00:30:43]} {[%emt 00:00:02]} d5 {[%clk 00:30:36]} {[%emt 00:00:10]} 5. a3
{[%clk 00:30:46]} {[%emt 00:00:07]} Be7 {[%clk 00:30:19]} {[%emt 00:00:27]} 6.
e4 {[%clk 00:30:41]} {[%emt 00:00:15]} dxc4 {[%clk 00:30:27]} {[%emt 00:00:02]}
7. Bxc4 {[%clk 00:30:01]} {[%emt 00:00:50]} c5 {[%clk 00:30:36]} {[%emt
00:00:01]} 8. d5 {[%clk 00:28:30]} {[%emt 00:01:40]} O-O {[%clk 00:30:13]}
{[%emt 00:00:33]} 9. Nge2 {[%clk 00:27:47]} {[%emt 00:00:54]} exd5 {[%clk
00:30:21]} {[%emt 00:00:02]} 10. Nxd5 {[%clk 00:27:51]} {[%emt 00:00:05]} Nxd5
{[%clk 00:30:21]} {[%emt 00:00:10]} 11. Bxd5 {[%clk 00:27:58]} {[%emt
00:00:03]} Nd7 {[%clk 00:30:00]} {[%emt 00:00:31]} 12. O-O {[%clk 00:26:26]}
{[%emt 00:01:42]} Nb6 {[%clk 00:30:02]} {[%emt 00:00:08]} 13. Ba2 {[%clk
00:26:12]} {[%emt 00:00:23]} c4 {[%clk 00:28:27]} {[%emt 00:01:46]} 14. Be3
{[%clk 00:24:33]} {[%emt 00:01:48]} Qc7 {[%clk 00:28:28]} {[%emt 00:00:10]} 15.
Kh1 {[%clk 00:22:26]} {[%emt 00:02:17]} Be6 {[%clk 00:26:57]} {[%emt 00:01:41]}
16. Nd4 {[%clk 00:20:25]} {[%emt 00:02:12]} Bc5 {[%clk 00:26:34]} {[%emt
00:00:33]} 17. Nxe6 {[%clk 00:19:23]} {[%emt 00:01:12]} fxe6 {[%clk 00:26:42]}
{[%emt 00:00:02]} 18. Qe2 {[%clk 00:19:29]} {[%emt 00:00:03]} Bxe3 {[%clk
00:25:52]} {[%emt 00:01:00]} 19. Qxe3 {[%clk 00:19:37]} {[%emt 00:00:02]} Qe5
{[%clk 00:24:58]} {[%emt 00:01:04]} 20. Rac1 {[%clk 00:15:20]} {[%emt
00:04:27]} Rac8 {[%clk 00:23:32]} {[%emt 00:01:36]} 21. Rc3 {[%clk 00:14:30]}
{[%emt 00:01:00]} Rfd8 {[%clk 00:20:41]} {[%emt 00:03:01]} 22. f4 {[%clk
00:09:19]} {[%emt 00:05:21]} Qd4 {[%clk 00:20:10]} {[%emt 00:00:41]} 23. Qf3
{[%clk 00:06:45]} {[%emt 00:02:44]} Qd2 {[%clk 00:19:12]} {[%emt 00:01:09]} 24.
f5 {[%clk 00:06:00]} {[%emt 00:00:55]} Rf8 {[%clk 00:15:08]} {[%emt 00:04:14]}
25. Rf2 {[%clk 00:04:23]} {[%emt 00:01:47]} Qd4 {[%clk 00:15:16]} {[%emt
00:00:02]} 26. Rcc2 {[%clk 00:03:56]} {[%emt 00:00:38]} Qe5 {[%clk 00:12:07]}
{[%emt 00:03:18]} 27. h3 {[%clk 00:03:58]} {[%emt 00:00:08]} Rc6 {[%clk
00:11:32]} {[%emt 00:00:45]} 28. Rcd2 {[%clk 00:03:48]} {[%emt 00:00:21]} Na4
{[%clk 00:11:17]} {[%emt 00:00:26]} 29. Rd7 {[%clk 00:03:37]} {[%emt 00:00:19]}
Nc5 {[%clk 00:11:19]} {[%emt 00:00:09]} 30. Rd1 {[%clk 00:02:33]} {[%emt
00:01:14]} Nxe4 {[%clk 00:11:19]} {[%emt 00:00:11]} 0-1

[Event "Vastgota Open 2022"]
[Site "Skara stadshotell, Jarnvagsgatan 5, Skara, Sweden"]
[Date "2022.10.30"]
[Round "7.2"]
[White "Golubka, Petro"]
[Black "Thyberg, Andre"]
[Result "1-0"]
[TimeControl "30 minutes + 10 seconds per move from move one."]
[WhiteTitle "GM"]
[WhiteFideId "14114224"]
[BlackFideId "1764764"]
[WhiteElo "2335"]
[BlackElo "1632"]

1. d4 {[%clk 00:25:00]} {[%emt 00:05:19]} Nf6 {[%clk 00:30:12]} {[%emt
00:00:08]} 2. Nc3 {[%clk 00:25:00]} {[%emt 00:00:10]} d5 {[%clk 00:30:15]}
{[%emt 00:00:07]} 3. Bg5 {[%clk 00:25:02]} {[%emt 00:00:08]} c6 {[%clk
00:30:07]} {[%emt 00:00:18]} 4. Qd2 {[%clk 00:25:08]} {[%emt 00:00:04]} Bf5
{[%clk 00:29:54]} {[%emt 00:00:22]} 5. f3 {[%clk 00:25:13]} {[%emt 00:00:06]}
e6 {[%clk 00:29:09]} {[%emt 00:00:55]} 6. e4 {[%clk 00:24:17]} {[%emt
00:01:06]} dxe4 {[%clk 00:27:21]} {[%emt 00:01:58]} 7. fxe4 {[%clk 00:24:15]}
{[%emt 00:00:12]} Nxe4 {[%clk 00:26:48]} {[%emt 00:00:43]} 8. Nxe4 {[%clk
00:24:14]} {[%emt 00:00:10]} f6 {[%clk 00:26:54]} {[%emt 00:00:05]} 9. Bxf6
{[%clk 00:23:30]} {[%emt 00:00:55]} gxf6 {[%clk 00:26:55]} {[%emt 00:00:08]} 10.
Ng3 {[%clk 00:23:38]} {[%emt 00:00:03]} Bg6 {[%clk 00:25:12]} {[%emt 00:01:53]}
11. Bc4 {[%clk 00:23:28]} {[%emt 00:00:19]} Qd6 {[%clk 00:24:45]} {[%emt
00:00:37]} 12. Qe2 {[%clk 00:21:51]} {[%emt 00:01:48]} e5 {[%clk 00:21:32]}
{[%emt 00:03:23]} 13. Nf3 {[%clk 00:21:28]} {[%emt 00:00:32]} Nd7 {[%clk
00:21:33]} {[%emt 00:00:09]} 14. O-O-O {[%clk 00:21:10]} {[%emt 00:00:28]} Qc7
{[%clk 00:19:14]} {[%emt 00:02:29]} 15. dxe5 {[%clk 00:18:17]} {[%emt
00:03:04]} O-O-O {[%clk 00:18:01]} {[%emt 00:01:23]} 16. e6 {[%clk 00:16:31]}
{[%emt 00:01:56]} Bh6+ {[%clk 00:17:59]} {[%emt 00:00:12]} 17. Kb1 {[%clk
00:16:38]} {[%emt 00:00:04]} Nb6 {[%clk 00:17:08]} {[%emt 00:01:01]} 18. Nh4
{[%clk 00:15:56]} {[%emt 00:00:51]} Rhe8 {[%clk 00:15:55]} {[%emt 00:01:23]} 19.
Rxd8+ {[%clk 00:14:41]} {[%emt 00:01:25]} Qxd8 {[%emt 00:01:25]} 20. Ngf5
{[%clk 00:14:05]} {[%emt 00:00:43]} Bg5 {[%clk 00:13:24]} {[%emt 00:01:29]} 21.
Nxg6 {[%clk 00:11:26]} {[%emt 00:02:49]} hxg6 {[%clk 00:13:28]} {[%emt
00:00:05]} 22. e7 {[%clk 00:11:28]} {[%emt 00:00:10]} Qc7 {[%clk 00:11:41]}
{[%emt 00:01:57]} 23. Bf7 {[%clk 00:09:24]} {[%emt 00:02:13]} gxf5 {[%clk
00:11:24]} {[%emt 00:00:28]} 24. Bxe8 {[%clk 00:09:27]} {[%emt 00:00:07]} Nd5
{[%clk 00:11:30]} {[%emt 00:00:03]} 25. Bd7+ {[%clk 00:08:58]} {[%emt
00:00:36]} 1-0

[Event "Vastgota Open 2022"]
[Site "Skara stadshotell, Jarnvagsgatan 5, Skara, Sweden"]
[Date "2022.10.30"]
[Round "7.3"]
[White "Cramling, Pia"]
[Black "Nilsson, Patrik"]
[Result "1-0"]
[TimeControl "30 minutes + 10 seconds per move from move one."]
[WhiteTitle "GM"]
[WhiteFideId "1700030"]
[BlackFideId "1708171"]
[WhiteElo "2421"]
[BlackElo "2085"]

1. d4 {[%clk 00:30:15]} {[%emt 00:00:06]} f5 {[%clk 00:30:17]} {[%emt
00:00:02]} 2. g3 {[%clk 00:30:23]} {[%emt 00:00:03]} Nf6 {[%clk 00:30:24]}
{[%emt 00:00:03]} 3. Bg2 {[%clk 00:30:31]} g6 {[%clk 00:30:31]} {[%emt
00:00:03]} 4. b3 {[%clk 00:29:46]} {[%emt 00:00:56]} Bg7 {[%clk 00:30:38]}
{[%emt 00:00:03]} 5. Bb2 {[%clk 00:29:55]} O-O {[%clk 00:30:27]} {[%emt
00:00:21]} 6. Nd2 {[%clk 00:29:53]} {[%emt 00:00:11]} d6 {[%clk 00:29:52]}
{[%emt 00:00:45]} 7. Ngf3 {[%clk 00:29:13]} {[%emt 00:00:50]} Nc6 {[%clk
00:29:52]} {[%emt 00:00:10]} 8. O-O {[%clk 00:29:21]} {[%emt 00:00:03]} Ne4
{[%clk 00:29:52]} {[%emt 00:00:09]} 9. Ne1 {[%clk 00:29:29]} {[%emt 00:00:01]}
Ng5 {[%clk 00:29:26]} {[%emt 00:00:36]} 10. f4 {[%clk 00:29:35]} {[%emt
00:00:05]} Nf7 {[%clk 00:29:26]} {[%emt 00:00:09]} 11. Nc4 {[%clk 00:29:42]}
{[%emt 00:00:03]} e6 {[%clk 00:27:08]} {[%emt 00:02:28]} 12. e3 {[%clk
00:29:46]} {[%emt 00:00:06]} Qe8 {[%clk 00:27:03]} {[%emt 00:00:15]} 13. Nd3
{[%clk 00:29:22]} {[%emt 00:00:34]} Bd7 {[%clk 00:26:31]} {[%emt 00:00:42]} 14.
a4 {[%clk 00:28:19]} {[%emt 00:01:14]} a6 {[%clk 00:25:59]} {[%emt 00:00:42]}
15. a5 {[%clk 00:27:46]} {[%emt 00:00:43]} d5 {[%clk 00:23:50]} {[%emt
00:02:19]} 16. Nce5 {[%clk 00:25:44]} {[%emt 00:02:11]} Nfxe5 {[%clk 00:21:38]}
{[%emt 00:02:22]} 17. fxe5 {[%clk 00:24:34]} {[%emt 00:01:20]} Nd8 {[%clk
00:20:11]} {[%emt 00:01:38]} 18. c4 {[%clk 00:22:02]} {[%emt 00:02:42]} dxc4
{[%clk 00:18:56]} {[%emt 00:01:24]} 19. bxc4 {[%clk 00:22:11]} {[%emt
00:00:02]} Bc6 {[%clk 00:19:02]} {[%emt 00:00:04]} 20. Qe2 {[%clk 00:20:40]}
{[%emt 00:01:40]} b5 {[%clk 00:15:47]} {[%emt 00:03:26]} 21. axb6 {[%clk
00:20:27]} {[%emt 00:00:24]} cxb6 {[%clk 00:15:55]} 22. Nb4 {[%clk 00:19:38]}
{[%emt 00:00:58]} a5 {[%clk 00:14:15]} {[%emt 00:01:51]} 23. Nxc6 {[%clk
00:18:30]} {[%emt 00:01:18]} Nxc6 {[%clk 00:14:23]} {[%emt 00:00:02]} 24. Ba3
{[%clk 00:18:24]} {[%emt 00:00:16]} Rf7 {[%clk 00:13:21]} {[%emt 00:01:13]} 25.
Rfb1 {[%clk 00:18:31]} {[%emt 00:00:02]} Rb8 {[%clk 00:11:51]} {[%emt
00:01:40]} 26. Bd6 {[%clk 00:18:38]} {[%emt 00:00:02]} Rbb7 {[%clk 00:10:37]}
{[%emt 00:01:25]} 27. Rb5 {[%clk 00:18:20]} {[%emt 00:00:27]} Bf8 {[%clk
00:10:06]} {[%emt 00:00:42]} 28. Bxf8 {[%clk 00:17:36]} {[%emt 00:00:54]} Kxf8
{[%clk 00:10:06]} {[%emt 00:00:10]} 29. Qb2 {[%clk 00:17:41]} {[%emt 00:00:02]}
Nb4 {[%clk 00:09:06]} {[%emt 00:01:13]} 30. Bxb7 {[%clk 00:17:27]} {[%emt
00:00:24]} Rxb7 {[%clk 00:09:14]} {[%emt 00:00:02]} 31. Raxa5 {[%clk 00:14:55]}
{[%emt 00:02:43]} bxa5 {[%clk 00:09:21]} {[%emt 00:00:04]} 32. Rxb7 {[%clk
00:15:03]} {[%emt 00:00:01]} Qc6 {[%clk 00:09:17]} {[%emt 00:00:13]} 33. Rb8+
{[%clk 00:07:58]} {[%emt 00:07:15]} Kg7 {[%clk 00:08:32]} {[%emt 00:00:55]} 34.
Qg2 {[%clk 00:07:56]} {[%emt 00:00:11]} Qxc4 {[%clk 00:07:28]} {[%emt
00:01:15]} 35. Qb7+ {[%clk 00:07:53]} {[%emt 00:00:13]} Kh6 {[%clk 00:07:32]}
{[%emt 00:00:06]} 36. Rh8 {[%clk 00:07:43]} 1-0

[Event "Vastgota Open 2022"]
[Site "Skara stadshotell, Jarnvagsgatan 5, Skara, Sweden"]
[Date "2022.10.30"]
[Round "7.4"]
[White "Bengtsson, Jessica"]
[Black "Eklund, Lars-Goran"]
[Result "0-1"]
[TimeControl "30 minutes + 10 seconds per move from move one."]
[WhiteTitle "WFM"]
[BlackTitle "FM"]
[WhiteFideId "1711083"]
[BlackFideId "1701010"]
[WhiteElo "2003"]
[BlackElo "2176"]

1. e4 {[%clk 00:30:17]} {[%emt 00:00:04]} Nc6 {[%clk 00:30:14]} {[%emt
00:00:05]} 2. d4 {[%clk 00:30:17]} {[%emt 00:00:09]} d5 {[%clk 00:30:20]}
{[%emt 00:00:06]} 3. Nc3 {[%clk 00:30:21]} {[%emt 00:00:05]} dxe4 {[%clk
00:30:24]} {[%emt 00:00:06]} 4. d5 {[%clk 00:30:24]} {[%emt 00:00:06]} Nb8
{[%clk 00:30:32]} {[%emt 00:00:02]} 5. Nxe4 {[%clk 00:30:22]} {[%emt 00:00:12]}
c6 {[%clk 00:30:11]} {[%emt 00:00:31]} 6. Bc4 {[%clk 00:29:34]} {[%emt
00:00:57]} cxd5 {[%clk 00:29:25]} {[%emt 00:00:57]} 7. Qxd5 {[%clk 00:28:53]}
{[%emt 00:00:51]} Qxd5 {[%clk 00:29:13]} {[%emt 00:00:23]} 8. Bxd5 {[%clk
00:28:58]} {[%emt 00:00:04]} e6 {[%clk 00:28:56]} {[%emt 00:00:27]} 9. Bc4
{[%clk 00:26:49]} {[%emt 00:02:18]} Nf6 {[%clk 00:29:02]} {[%emt 00:00:05]} 10.
Nxf6+ {[%clk 00:26:16]} {[%emt 00:00:43]} gxf6 {[%clk 00:29:06]} {[%emt
00:00:06]} 11. Nf3 {[%clk 00:22:36]} {[%emt 00:03:49]} Nc6 {[%clk 00:24:38]}
{[%emt 00:04:39]} 12. Be3 {[%clk 00:22:05]} {[%emt 00:00:41]} e5 {[%clk
00:22:15]} {[%emt 00:02:33]} 13. O-O-O {[%clk 00:19:54]} {[%emt 00:02:21]} Be6
{[%clk 00:21:47]} {[%emt 00:00:38]} 14. Bxe6 {[%clk 00:17:15]} {[%emt
00:02:49]} fxe6 {[%clk 00:21:55]} {[%emt 00:00:02]} 15. a3 {[%clk 00:15:34]}
{[%emt 00:01:51]} Rg8 {[%clk 00:20:05]} {[%emt 00:02:01]} 16. g3 {[%clk
00:15:05]} {[%emt 00:00:38]} b6 {[%clk 00:10:32]} {[%emt 00:09:44]} 17. Kb1
{[%clk 00:14:31]} {[%emt 00:00:44]} Rd8 {[%clk 00:08:46]} {[%emt 00:01:56]} 18.
Rxd8+ {[%clk 00:13:56]} {[%emt 00:00:45]} Kxd8 {[%clk 00:08:54]} {[%emt
00:00:02]} 19. Rd1+ {[%clk 00:14:00]} {[%emt 00:00:06]} Kc7 {[%clk 00:08:52]}
{[%emt 00:00:12]} 20. Nd2 {[%clk 00:13:57]} {[%emt 00:00:12]} Be7 {[%clk
00:07:10]} {[%emt 00:01:52]} 21. Nb3 {[%clk 00:10:46]} {[%emt 00:03:21]} f5
{[%clk 00:04:59]} {[%emt 00:02:22]} 22. Nd2 {[%clk 00:08:33]} {[%emt 00:02:22]}
Rd8 {[%clk 00:03:17]} {[%emt 00:01:53]} 23. c3 {[%clk 00:08:17]} {[%emt
00:00:26]} e4 {[%clk 00:01:08]} {[%emt 00:02:19]} 24. Kc2 {[%clk 00:08:14]}
{[%emt 00:00:12]} Ne5 {[%clk 00:00:32]} {[%emt 00:00:46]} 25. Bf4 {[%emt
00:00:27]} Bd6 26. h3 {[%clk 00:05:18]} {[%emt 00:02:48]} Nd3 {[%clk 00:00:40]}
{[%emt 00:00:13]} 27. Bxd6+ {[%clk 00:05:21]} {[%emt 00:00:07]} Rxd6 {[%clk
00:00:46]} {[%emt 00:00:04]} 28. Rf1 {[%clk 00:02:22]} {[%emt 00:03:09]} Nxf2
{[%clk 00:00:11]} {[%emt 00:00:46]} 29. Nc4 {[%clk 00:00:26]} {[%emt 00:02:05]}
Rc6 {[%clk 00:00:20]} {[%emt 00:00:01]} 30. Rxf2 {[%clk 00:00:18]} {[%emt
00:00:17]} Rxc4 {[%clk 00:00:29]} {[%emt 00:00:01]} 31. Kd2 {[%clk 00:00:13]}
{[%emt 00:00:15]} h5 {[%clk 00:00:36]} {[%emt 00:00:03]} 32. Ke3 {[%clk
00:00:20]} {[%emt 00:00:02]} Kd6 {[%clk 00:00:21]} {[%emt 00:00:26]} 33. Kf4
{[%clk 00:00:29]} {[%emt 00:00:02]} h4 {[%clk 00:00:22]} {[%emt 00:00:08]} 34.
Rd2+ {[%clk 00:00:28]} {[%emt 00:00:11]} Ke7 {[%clk 00:00:32]} 35. gxh4 {[%clk
00:00:32]} {[%emt 00:00:06]} e3+ {[%clk 00:00:41]} {[%emt 00:00:01]} 36. Kxe3
{[%clk 00:00:39]} {[%emt 00:00:03]} Rxh4 {[%clk 00:00:50]} 37. Rh2 {[%clk
00:00:44]} {[%emt 00:00:05]} e5 {[%clk 00:00:59]} {[%emt 00:00:02]} 38. Kf3
{[%clk 00:00:27]} {[%emt 00:00:26]} Kf6 {[%clk 00:01:08]} {[%emt 00:00:02]} 39.
Kg3 {[%clk 00:00:31]} {[%emt 00:00:05]} Kg5 {[%clk 00:01:08]} {[%emt 00:00:11]}
40. Rd2 {[%clk 00:00:24]} {[%emt 00:00:18]} f4+ {[%clk 00:01:12]} {[%emt
00:00:05]} 41. Kg2 {[%clk 00:00:29]} {[%emt 00:00:04]} Rh7 {[%clk 00:01:19]}
{[%emt 00:00:04]} 42. c4 {[%clk 00:00:18]} {[%emt 00:00:22]} Kf5 {[%clk
00:01:18]} {[%emt 00:00:11]} 43. b4 {[%clk 00:00:12]} {[%emt 00:00:16]} Rc7
{[%clk 00:01:18]} {[%emt 00:00:09]} 44. Rc2 {[%clk 00:00:14]} {[%emt 00:00:08]}
e4 {[%clk 00:01:27]} 45. a4 {[%clk 00:00:12]} {[%emt 00:00:12]} f3+ {[%clk
00:01:29]} {[%emt 00:00:09]} 46. Kf2 {[%clk 00:00:12]} {[%emt 00:00:09]} Kf4
{[%clk 00:01:35]} {[%emt 00:00:04]} 47. Rc3 {[%clk 00:00:11]} {[%emt 00:00:11]}
Rg7 {[%clk 00:01:36]} {[%emt 00:00:09]} 48. c5 {[%clk 00:00:16]} {[%emt
00:00:06]} e3+ {[%clk 00:01:27]} {[%emt 00:00:19]} 49. Kf1 {[%clk 00:00:15]}
{[%emt 00:00:10]} e2+ {[%clk 00:01:34]} {[%emt 00:00:04]} 50. Kf2 {[%clk
00:00:17]} {[%emt 00:00:08]} Rg2+ {[%clk 00:01:42]} {[%emt 00:00:03]} 51. Ke1
{[%clk 00:00:25]} {[%emt 00:00:02]} Rg1+ {[%clk 00:01:50]} {[%emt 00:00:02]}
0-1

[Event "Vastgota Open 2022"]
[Site "Skara stadshotell, Jarnvagsgatan 5, Skara, Sweden"]
[Date "2022.10.30"]
[Round "7.5"]
[White "Aroven, Mikael"]
[Black "Ronneland, Daniel"]
[Result "1-0"]
[TimeControl "30 minutes + 10 seconds per move from move one."]
[WhiteFideId "1709534"]
[BlackFideId "1702130"]
[WhiteElo "2089"]
[BlackElo "2206"]

1. c4 {[%clk 00:30:18]} {[%emt 00:00:01]} Nf6 {[%clk 00:30:03]} {[%emt
00:00:17]} 2. g3 {[%clk 00:30:26]} {[%emt 00:00:02]} e5 {[%clk 00:28:39]}
{[%emt 00:01:34]} 3. Bg2 {[%clk 00:30:34]} {[%emt 00:00:02]} Nc6 {[%clk
00:28:11]} {[%emt 00:00:39]} 4. Nc3 {[%clk 00:30:41]} {[%emt 00:00:04]} d6
{[%clk 00:27:32]} {[%emt 00:00:46]} 5. Nf3 {[%clk 00:30:15]} {[%emt 00:00:37]}
g6 {[%clk 00:26:49]} {[%emt 00:00:53]} 6. d4 {[%clk 00:26:32]} {[%emt
00:03:54]} exd4 {[%clk 00:21:06]} {[%emt 00:05:53]} 7. Nxd4 {[%clk 00:26:39]}
{[%emt 00:00:02]} Bd7 {[%clk 00:20:53]} {[%emt 00:00:23]} 8. O-O {[%clk
00:26:24]} {[%emt 00:00:24]} Bg7 {[%clk 00:20:59]} {[%emt 00:00:05]} 9. b3
{[%clk 00:23:55]} {[%emt 00:02:40]} O-O {[%clk 00:20:46]} {[%emt 00:00:23]} 10.
Bb2 {[%clk 00:24:03]} {[%emt 00:00:02]} Re8 {[%clk 00:19:55]} {[%emt 00:01:00]}
11. Nxc6 {[%clk 00:14:28]} {[%emt 00:09:47]} Bxc6 {[%clk 00:19:26]} {[%emt
00:00:37]} 12. Nd5 {[%clk 00:14:08]} {[%emt 00:00:33]} Nxd5 {[%clk 00:18:40]}
{[%emt 00:00:53]} 13. Bxg7 {[%clk 00:14:16]} {[%emt 00:00:03]} Kxg7 {[%clk
00:14:15]} {[%emt 00:04:35]} 14. cxd5 {[%clk 00:14:17]} {[%emt 00:00:08]} Bb5
{[%clk 00:14:12]} {[%emt 00:00:11]} 15. Re1 {[%clk 00:14:22]} {[%emt 00:00:07]}
Qf6 {[%clk 00:13:19]} {[%emt 00:01:03]} 16. Rc1 {[%clk 00:14:20]} {[%emt
00:00:12]} Re7 {[%clk 00:13:15]} {[%emt 00:00:14]} 17. Qd2 {[%clk 00:14:09]}
{[%emt 00:00:21]} Rae8 {[%clk 00:13:02]} {[%emt 00:00:23]} 18. e3 {[%clk
00:14:16]} {[%emt 00:00:03]} b6 {[%clk 00:08:50]} {[%emt 00:04:22]} 19. Rc2
{[%clk 00:13:23]} {[%emt 00:01:03]} h5 {[%clk 00:07:32]} {[%emt 00:01:28]} 20.
h4 {[%clk 00:13:24]} {[%emt 00:00:09]} g5 {[%clk 00:07:18]} {[%emt 00:00:24]}
21. hxg5 {[%clk 00:13:25]} {[%emt 00:00:10]} Qxg5 {[%clk 00:07:22]} {[%emt
00:00:05]} 22. Qd4+ {[%clk 00:13:16]} {[%emt 00:00:17]} Qf6 {[%clk 00:05:17]}
{[%emt 00:02:17]} 23. Rd1 {[%clk 00:09:40]} {[%emt 00:03:46]} Rh8 {[%clk
00:04:41]} {[%emt 00:00:46]} 24. Qxf6+ {[%clk 00:08:44]} {[%emt 00:01:07]} Kxf6
{[%clk 00:04:49]} {[%emt 00:00:01]} 25. Rd4 {[%clk 00:08:53]} {[%emt 00:00:02]}
Kg5 {[%clk 00:04:32]} {[%emt 00:00:25]} 26. Rh4 {[%clk 00:06:55]} {[%emt
00:02:08]} f5 {[%clk 00:04:20]} {[%emt 00:00:23]} 27. Rd2 {[%clk 00:06:44]}
{[%emt 00:00:21]} a5 {[%clk 00:03:45]} {[%emt 00:00:45]} 28. a4 {[%clk
00:06:42]} {[%emt 00:00:13]} Ba6 {[%clk 00:03:30]} {[%emt 00:00:25]} 29. Bf3
{[%clk 00:06:50]} {[%emt 00:00:04]} Rhh7 {[%clk 00:02:55]} {[%emt 00:00:42]} 30.
Kg2 {[%clk 00:06:58]} {[%emt 00:00:02]} Bb7 {[%clk 00:02:53]} {[%emt 00:00:13]}
31. Kf1 {[%clk 00:06:28]} {[%emt 00:00:40]} Ba6+ {[%clk 00:02:18]} {[%emt
00:00:45]} 32. Ke1 {[%clk 00:06:36]} {[%emt 00:00:02]} Rh8 {[%clk 00:01:39]}
{[%emt 00:00:49]} 33. Rd1 {[%clk 00:06:35]} {[%emt 00:00:11]} b5 {[%clk
00:01:24]} {[%emt 00:00:25]} 34. Be2 {[%clk 00:06:26]} {[%emt 00:00:19]} Re4
{[%clk 00:01:06]} {[%emt 00:00:29]} 35. Rd4 {[%clk 00:05:05]} {[%emt 00:01:31]}
Bb7 {[%clk 00:00:46]} {[%emt 00:00:31]} 36. Bxb5 {[%clk 00:04:21]} {[%emt
00:00:54]} Rxh4 {[%clk 00:00:43]} {[%emt 00:00:13]} 37. gxh4+ {[%clk 00:04:29]}
{[%emt 00:00:01]} Kf6 {[%clk 00:00:50]} {[%emt 00:00:02]} 38. Be2 {[%clk
00:03:01]} {[%emt 00:01:39]} Ke5 {[%clk 00:00:53]} {[%emt 00:00:06]} 39. Bf3
{[%clk 00:03:07]} {[%emt 00:00:04]} Ba6 {[%clk 00:00:53]} {[%emt 00:00:11]} 40.
b4 {[%clk 00:02:57]} {[%emt 00:00:20]} axb4 {[%clk 00:00:46]} {[%emt 00:00:17]}
41. Rxb4 {[%clk 00:03:06]} {[%emt 00:00:01]} Bd3 {[%clk 00:00:47]} {[%emt
00:00:08]} 42. Rb7 {[%clk 00:02:00]} {[%emt 00:01:16]} Be4 {[%clk 00:00:56]}
{[%emt 00:00:02]} 43. Bxe4 {[%clk 00:01:57]} {[%emt 00:00:13]} fxe4 {[%clk
00:00:59]} {[%emt 00:00:06]} 44. Rxc7 {[%clk 00:02:06]} {[%emt 00:00:02]} Kxd5
{[%clk 00:00:56]} {[%emt 00:00:13]} 45. Kf1 {[%clk 00:01:37]} {[%emt 00:00:39]}
Ke5 {[%clk 00:00:23]} {[%emt 00:00:42]} 46. Rg7 {[%clk 00:01:33]} {[%emt
00:00:13]} Ra8 {[%clk 00:00:14]} {[%emt 00:00:21]} 47. a5 {[%clk 00:01:33]}
{[%emt 00:00:10]} Ke6 {[%clk 00:00:19]} {[%emt 00:00:03]} 48. Rg5 {[%clk
00:01:42]} {[%emt 00:00:02]} d5 {[%clk 00:00:27]} {[%emt 00:00:02]} 49. a6
{[%clk 00:01:44]} {[%emt 00:00:09]} Kd6 {[%clk 00:00:14]} {[%emt 00:00:21]} 50.
Rxh5 {[%clk 00:01:52]} {[%emt 00:00:03]} Kc5 {[%clk 00:00:23]} {[%emt
00:00:01]} 51. Rh6 {[%clk 00:01:59]} {[%emt 00:00:03]} d4 {[%clk 00:00:31]}
{[%emt 00:00:02]} 52. exd4+ {[%clk 00:02:07]} {[%emt 00:00:02]} Kxd4 {[%clk
00:00:40]} 53. Ke2 {[%clk 00:02:09]} {[%emt 00:00:08]} Ke5 {[%clk 00:00:47]}
{[%emt 00:00:03]} 54. Rh5+ {[%clk 00:02:17]} {[%emt 00:00:02]} Kf4 {[%clk
00:00:54]} {[%emt 00:00:03]} 55. Ra5 {[%clk 00:02:26]} Kg4 {[%clk 00:00:47]}
{[%emt 00:00:17]} 56. h5 {[%clk 00:02:34]} {[%emt 00:00:01]} 1-0